Workbook

Sheet Tabela
A1: Naziv | C1: Var | D1: Vola | E1: Perf | F1: MinPerf | G1: Max_drawdown
A2: 924 | B2: 2 | C2: Var, Vola I Perf se relaivno lako racuna pomocu vlookup I if funkcija. moze samo pomocu excel formula. | F2: =MinPerf(Podaci!B4:B1648) -> -0.04376639632 | G2: =max_drawdown(Podaci!B4:B1670) -> -0.2861932675
A3: 972 | B3: 3 | G3: =max_drawdown(Podaci!D4:D1670) -> -0.3286636767

Sheet Podaci
B1: 924 | D1: 972
A3: Date | C3: Date
A4: 2004-12-29 | B4: 1 | C4: 2004-12-29 | D4: 1 | E4: =LastDayinMonth(A4) -> 2004-12-31 | F4: =VLOOKUP(E4,A:B,2,0) -> 0.9990293386
A5: 2004-12-30 | B5: 0.9990293386 | C5: 2004-12-30 | D5: 0.9995183616 | E5: =LastDayinMonth(A5) -> 2004-12-31 | F5: =VLOOKUP(E5,A:B,2,0) -> 0.9990293386 | G5: =F5/F4-1 -> 0 | H5: =IF(H4<G5,H4,G5) -> 0
A6: 2004-12-31 | B6: 0.9990293386 | C6: 2004-12-31 | D6: 0.9995183616 | E6: =LastDayinMonth(A6) -> 2004-12-31 | F6: 0.9990293386 | G6: =F6/F5-1 -> 0 | H6: =IF(H5<G6,H5,G6) -> 0
A7: 2005-01-01 | B7: 0.9990293386 | C7: 2005-01-01 | D7: 0.9995183616 | E7: 2005-01-31 | F7: 1.006794692 | G7: 0.007772898132 | H7: 0
A8: 2005-01-02 | B8: 0.9990293423 | C8: 2005-01-02 | D8: 0.9995183616 | E8: 2005-01-31 | F8: 1.006794692 | G8: 0 | H8: 0
A9: 2005-01-03 | B9: 0.9990293423 | C9: 2005-01-03 | D9: 0.9995183616 | E9: 2005-01-31 | F9: 1.006794692 | G9: 0 | H9: 0
A10: 2005-01-04 | B10: 1.000000011 | C10: 2005-01-04 | D10: 1 | E10: 2005-01-31 | F10: 1.006794692 | G10: 0 | H10: 0
A11: 2005-01-05 | B11: 0.9990293423 | C11: 2005-01-05 | D11: 0.9989366192 | E11: 2005-01-31 | F11: 1.006794692 | G11: 0 | H11: 0
A12: 2005-01-06 | B12: 0.9990293423 | C12: 2005-01-06 | D12: 0.9989366192 | E12: 2005-01-31 | F12: 1.006794692 | G12: 0 | H12: 0
A13: 2005-01-07 | B13: 1.000000011 | C13: 2005-01-07 | D13: 1.000581756 | E13: 2005-01-31 | F13: 1.006794692 | G13: 0 | H13: 0
A14: 2005-01-08 | B14: 1.000000011 | C14: 2005-01-08 | D14: 1.000581756 | E14: 2005-01-31 | F14: 1.006794692 | G14: 0 | H14: 0
A15: 2005-01-09 | B15: 1.000000015 | C15: 2005-01-09 | D15: 1.000581756 | E15: 2005-01-31 | F15: 1.006794692 | G15: 0 | H15: 0
A16: 2005-01-10 | B16: 1.001941345 | C16: 2005-01-10 | D16: 1.001545033 | E16: 2005-01-31 | F16: 1.006794692 | G16: 0 | H16: 0
A17: 2005-01-11 | B17: 1.005824005 | C17: 2005-01-11 | D17: 1.005798583 | E17: 2005-01-31 | F17: 1.006794692 | G17: 0 | H17: 0
A18: 2005-01-12 | B18: 1.002912013 | C18: 2005-01-12 | D18: 1.00260842 | E18: 2005-01-31 | F18: 1.006794692 | G18: 0 | H18: 0
A19: 2005-01-13 | B19: 1.003882678 | C19: 2005-01-13 | D19: 1.004253564 | E19: 2005-01-31 | F19: 1.006794692 | G19: 0 | H19: 0
A20: 2005-01-14 | B20: 1.000970687 | C20: 2005-01-14 | D20: 1.000481652 | E20: 2005-01-31 | F20: 1.006794692 | G20: 0 | H20: 0
A21: 2005-01-15 | B21: 1.000970683 | C21: 2005-01-15 | D21: 1.000481652 | E21: 2005-01-31 | F21: 1.006794692 | G21: 0 | H21: 0
A22: 2005-01-16 | B22: 1.000970683 | C22: 2005-01-16 | D22: 1.000481652 | E22: 2005-01-31 | F22: 1.006794692 | G22: 0 | H22: 0
A23: 2005-01-17 | B23: 1.006794677 | C23: 2005-01-17 | D23: 1.00686197 | E23: 2005-01-31 | F23: 1.006794692 | G23: 0 | H23: 0
A24: 2005-01-18 | B24: 1.007765342 | C24: 2005-01-18 | D24: 1.007925358 | E24: 2005-01-31 | F24: 1.006794692 | G24: 0 | H24: 0
A25: 2005-01-19 | B25: 1.010677341 | C25: 2005-01-19 | D25: 1.01169727 | E25: 2005-01-31 | F25: 1.006794692 | G25: 0 | H25: 0
A26: 2005-01-20 | B26: 1.008736011 | C26: 2005-01-20 | D26: 1.008988745 | E26: 2005-01-31 | F26: 1.006794692 | G26: 0 | H26: 0
A27: 2005-01-21 | B27: 1.008736011 | C27: 2005-01-21 | D27: 1.008988752 | E27: 2005-01-31 | F27: 1.006794692 | G27: 0 | H27: 0
A28: 2005-01-22 | B28: 1.008736015 | C28: 2005-01-22 | D28: 1.008988752 | E28: 2005-01-31 | F28: 1.006794692 | G28: 0 | H28: 0
A29: 2005-01-23 | B29: 1.008736015 | C29: 2005-01-23 | D29: 1.008988752 | E29: 2005-01-31 | F29: 1.006794692 | G29: 0 | H29: 0
A30: 2005-01-24 | B30: 1.005824023 | C30: 2005-01-24 | D30: 1.00579859 | E30: 2005-01-31 | F30: 1.006794692 | G30: 0 | H30: 0
A31: 2005-01-25 | B31: 1.002912024 | C31: 2005-01-25 | D31: 1.002026678 | E31: 2005-01-31 | F31: 1.006794692 | G31: 0 | H31: 0
A32: 2005-01-26 | B32: 1.004853355 | C32: 2005-01-26 | D32: 1.004153453 | E32: 2005-01-31 | F32: 1.006794692 | G32: 0 | H32: 0
A33: 2005-01-27 | B33: 1.007765353 | C33: 2005-01-27 | D33: 1.007925365 | E33: 2005-01-31 | F33: 1.006794692 | G33: 0 | H33: 0
A34: 2005-01-28 | B34: 1.006794688 | C34: 2005-01-28 | D34: 1.006861977 | E34: 2005-01-31 | F34: 1.006794692 | G34: 0 | H34: 0
A35: 2005-01-29 | B35: 1.006794692 | C35: 2005-01-29 | D35: 1.006861977 | E35: 2005-01-31 | F35: 1.006794692 | G35: 0 | H35: 0
A36: 2005-01-30 | B36: 1.006794692 | C36: 2005-01-30 | D36: 1.006861984 | E36: 2005-01-31 | F36: 1.006794692 | G36: 0 | H36: 0
A37: 2005-01-31 | B37: 1.006794692 | C37: 2005-01-31 | D37: 1.006861984 | E37: 2005-01-31 | F37: 1.006794692 | G37: 0 | H37: 0
A38: 2005-02-01 | B38: 1.010677356 | C38: 2005-02-01 | D38: 1.011744884 | E38: 2005-02-28 | F38: 1.018442705 | G38: 0.0115694029 | H38: 0
A39: 2005-02-02 | B39: 1.013589351 | C39: 2005-02-02 | D39: 1.014965928 | E39: 2005-02-28 | F39: 1.018442705 | G39: 0 | H39: 0
A40: 2005-02-03 | B40: 1.013589354 | C40: 2005-02-03 | D40: 1.014964407 | E40: 2005-02-28 | F40: 1.018442705 | G40: 0 | H40: 0
A41: 2005-02-04 | B41: 1.014560016 | C41: 2005-02-04 | D41: 1.016021489 | E41: 2005-02-28 | F41: 1.018442705 | G41: 0 | H41: 0
A42: 2005-02-05 | B42: 1.014560016 | C42: 2005-02-05 | D42: 1.016019968 | E42: 2005-02-28 | F42: 1.018442705 | G42: 0 | H42: 0
A43: 2005-02-06 | B43: 1.01456002 | C43: 2005-02-06 | D43: 1.016018447 | E43: 2005-02-28 | F43: 1.018442705 | G43: 0 | H43: 0
A44: 2005-02-07 | B44: 1.019413345 | C44: 2005-02-07 | D44: 1.021916266 | E44: 2005-02-28 | F44: 1.018442705 | G44: 0 | H44: 0
A45: 2005-02-08 | B45: 1.023296009 | C45: 2005-02-08 | D45: 1.026168738 | E45: 2005-02-28 | F45: 1.018442705 | G45: 0 | H45: 0
A46: 2005-02-09 | B46: 1.026208004 | C46: 2005-02-09 | D46: 1.029359232 | E46: 2005-02-28 | F46: 1.018442705 | G46: 0 | H46: 0
A47: 2005-02-10 | B47: 1.023296009 | C47: 2005-02-10 | D47: 1.025586882 | E47: 2005-02-28 | F47: 1.018442705 | G47: 0 | H47: 0
A48: 2005-02-11 | B48: 1.024266677 | C48: 2005-02-11 | D48: 1.02665038 | E48: 2005-02-28 | F48: 1.018442705 | G48: 0 | H48: 0
A49: 2005-02-12 | B49: 1.024266677 | C49: 2005-02-12 | D49: 1.02665038 | E49: 2005-02-28 | F49: 1.018442705 | G49: 0 | H49: 0
A50: 2005-02-13 | B50: 1.024266681 | C50: 2005-02-13 | D50: 1.02665038 | E50: 2005-02-28 | F50: 1.018442705 | G50: 0 | H50: 0
A51: 2005-02-14 | B51: 1.025237342 | C51: 2005-02-14 | D51: 1.028295741 | E51: 2005-02-28 | F51: 1.018442705 | G51: 0 | H51: 0
A52: 2005-02-15 | B52: 1.023296012 | C52: 2005-02-15 | D52: 1.026168745 | E52: 2005-02-28 | F52: 1.018442705 | G52: 0 | H52: 0
A53: 2005-02-16 | B53: 1.023296016 | C53: 2005-02-16 | D53: 1.026750601 | E53: 2005-02-28 | F53: 1.018442705 | G53: 0 | H53: 0
A54: 2005-02-17 | B54: 1.022325351 | C54: 2005-02-17 | D54: 1.025105247 | E54: 2005-02-28 | F54: 1.018442705 | G54: 0 | H54: 0
A55: 2005-02-18 | B55: 1.019413359 | C55: 2005-02-18 | D55: 1.021914752 | E55: 2005-02-28 | F55: 1.018442705 | G55: 0 | H55: 0
A56: 2005-02-19 | B56: 1.019413359 | C56: 2005-02-19 | D56: 1.021914752 | E56: 2005-02-28 | F56: 1.018442705 | G56: 0 | H56: 0
A57: 2005-02-20 | B57: 1.019413359 | C57: 2005-02-20 | D57: 1.021914752 | E57: 2005-02-28 | F57: 1.018442705 | G57: 0 | H57: 0
A58: 2005-02-21 | B58: 1.018442698 | C58: 2005-02-21 | D58: 1.02143311 | E58: 2005-02-28 | F58: 1.018442705 | G58: 0 | H58: 0
A59: 2005-02-22 | B59: 1.017472033 | C59: 2005-02-22 | D59: 1.020369612 | E59: 2005-02-28 | F59: 1.018442705 | G59: 0 | H59: 0
A60: 2005-02-23 | B60: 1.011648046 | C60: 2005-02-23 | D60: 1.013406768 | E60: 2005-02-28 | F60: 1.018442705 | G60: 0 | H60: 0
A61: 2005-02-24 | B61: 1.012618708 | C61: 2005-02-24 | D61: 1.014470273 | E61: 2005-02-28 | F61: 1.018442705 | G61: 0 | H61: 0
A62: 2005-02-25 | B62: 1.013589376 | C62: 2005-02-25 | D62: 1.015533771 | E62: 2005-02-28 | F62: 1.018442705 | G62: 0 | H62: 0
A63: 2005-02-26 | B63: 1.013589376 | C63: 2005-02-26 | D63: 1.015533771 | E63: 2005-02-28 | F63: 1.018442705 | G63: 0 | H63: 0
A64: 2005-02-27 | B64: 1.013589376 | C64: 2005-02-27 | D64: 1.015533771 | E64: 2005-02-28 | F64: 1.018442705 | G64: 0 | H64: 0
A65: 2005-02-28 | B65: 1.018442705 | C65: 2005-02-28 | D65: 1.021423202 | E65: 2005-02-28 | F65: 1.018442705 | G65: 0 | H65: 0
A66: 2005-03-01 | B66: 1.014560045 | C66: 2005-03-01 | D66: 1.017725363 | E66: 2005-03-31 | F66: 1.010677418 | G66: -0.00762466781 | H66: -0.00762466781
A67: 2005-03-02 | B67: 1.017472044 | C67: 2005-03-02 | D67: 1.020936277 | E67: 2005-03-31 | F67: 1.010677418 | G67: 0 | H67: -0.00762466781
A68: 2005-03-03 | B68: 1.018442709 | C68: 2005-03-03 | D68: 1.022591674 | E68: 2005-03-31 | F68: 1.010677418 | G68: 0 | H68: -0.00762466781
A69: 2005-03-04 | B69: 1.017472044 | C69: 2005-03-04 | D69: 1.021520005 | E69: 2005-03-31 | F69: =VLOOKUP(E69,A:B,2,0) -> 1.010677418 | G69: 0 | H69: -0.00762466781
A70: 2005-03-05 | B70: 1.017472048 | C70: 2005-03-05 | D70: 1.021518982 | E70: =LastDayinMonth(A70) -> 2005-03-31 | F70: 1.010677418 | G70: =F70/F69-1 -> 0 | H70: =IF(H69<G70,H69,G70) -> -0.00762466781
A71: 2005-03-06 | B71: 1.017472044 | C71: 2005-03-06 | D71: 1.021517959 | E71: 2005-03-31 | F71: 1.010677418 | G71: 0 | H71: -0.00762466781
A72: 2005-03-07 | B72: 1.021354708 | C72: 2005-03-07 | D72: 1.025770694 | E72: 2005-03-31 | F72: 1.010677418 | G72: 0 | H72: -0.00762466781
A73: 2005-03-08 | B73: 1.022325373 | C73: 2005-03-08 | D73: 1.026833108 | E73: 2005-03-31 | F73: 1.010677418 | G73: 0 | H73: -0.00762466781
A74: 2005-03-09 | B74: 1.019413378 | C74: 2005-03-09 | D74: 1.023642796 | E74: 2005-03-31 | F74: 1.010677418 | G74: 0 | H74: -0.00762466781
A75: 2005-03-10 | B75: 1.014560056 | C75: 2005-03-10 | D75: 1.017743754 | E75: 2005-03-31 | F75: 1.010677418 | G75: 0 | H75: -0.00762466781
A76: 2005-03-11 | B76: 1.014560056 | C76: 2005-03-11 | D76: 1.017743754 | E76: 2005-03-31 | F76: 1.010677418 | G76: 0 | H76: -0.00762466781
A77: 2005-03-12 | B77: 1.01456006 | C77: 2005-03-12 | D77: 1.017743761 | E77: 2005-03-31 | F77: 1.010677418 | G77: 0 | H77: -0.00762466781
A78: 2005-03-13 | B78: 1.01456006 | C78: 2005-03-13 | D78: 1.017743761 | E78: 2005-03-31 | F78: 1.010677418 | G78: 0 | H78: -0.00762466781
A79: 2005-03-14 | B79: 1.013589395 | C79: 2005-03-14 | D79: 1.016680323 | E79: 2005-03-31 | F79: 1.010677418 | G79: 0 | H79: -0.00762466781
A80: 2005-03-15 | B80: 1.013589398 | C80: 2005-03-15 | D80: 1.016680323 | E80: 2005-03-31 | F80: 1.010677418 | G80: 0 | H80: -0.00762466781
A81: 2005-03-16 | B81: 1.01261873 | C81: 2005-03-16 | D81: 1.015616886 | E81: 2005-03-31 | F81: 1.010677418 | G81: 0 | H81: -0.00762466781
A82: 2005-03-17 | B82: 1.011648068 | C82: 2005-03-17 | D82: 1.013971594 | E82: 2005-03-31 | F82: 1.010677418 | G82: 0 | H82: -0.00762466781
A83: 2005-03-18 | B83: 1.010677403 | C83: 2005-03-18 | D83: 1.012908157 | E83: 2005-03-31 | F83: 1.010677418 | G83: 0 | H83: -0.00762466781
A84: 2005-03-19 | B84: 1.010677403 | C84: 2005-03-19 | D84: 1.012908164 | E84: 2005-03-31 | F84: 1.010677418 | G84: 0 | H84: -0.00762466781
A85: 2005-03-20 | B85: 1.010677407 | C85: 2005-03-20 | D85: 1.012908164 | E85: 2005-03-31 | F85: 1.010677418 | G85: 0 | H85: -0.00762466781
A86: 2005-03-21 | B86: 1.011648072 | C86: 2005-03-21 | D86: 1.014553455 | E86: 2005-03-31 | F86: 1.010677418 | G86: 0 | H86: -0.00762466781
A87: 2005-03-22 | B87: 1.010677411 | C87: 2005-03-22 | D87: 1.012908157 | E87: 2005-03-31 | F87: 1.010677418 | G87: 0 | H87: -0.00762466781
A88: 2005-03-23 | B88: 1.008736081 | C88: 2005-03-23 | D88: 1.010781281 | E88: 2005-03-31 | F88: 1.010677418 | G88: 0 | H88: -0.00762466781
A89: 2005-03-24 | B89: 1.008736081 | C89: 2005-03-24 | D89: 1.010781281 | E89: 2005-03-31 | F89: 1.010677418 | G89: 0 | H89: -0.00762466781
A90: 2005-03-25 | B90: 1.008736084 | C90: 2005-03-25 | D90: 1.010781288 | E90: 2005-03-31 | F90: 1.010677418 | G90: 0 | H90: -0.00762466781
A91: 2005-03-26 | B91: 1.008736081 | C91: 2005-03-26 | D91: 1.010781288 | E91: 2005-03-31 | F91: 1.010677418 | G91: 0 | H91: -0.00762466781
A92: 2005-03-27 | B92: 1.008736084 | C92: 2005-03-27 | D92: 1.010781288 | E92: 2005-03-31 | F92: 1.010677418 | G92: 0 | H92: -0.00762466781
A93: 2005-03-28 | B93: 1.008736084 | C93: 2005-03-28 | D93: 1.010781288 | E93: 2005-03-31 | F93: 1.010677418 | G93: 0 | H93: -0.00762466781
A94: 2005-03-29 | B94: 1.011648079 | C94: 2005-03-29 | D94: 1.013971601 | E94: 2005-03-31 | F94: 1.010677418 | G94: 0 | H94: -0.00762466781
A95: 2005-03-30 | B95: 1.008736088 | C95: 2005-03-30 | D95: 1.010199435 | E95: 2005-03-31 | F95: 1.010677418 | G95: 0 | H95: -0.00762466781
A96: 2005-03-31 | B96: 1.010677418 | C96: 2005-03-31 | D96: 1.01290817 | E96: 2005-03-31 | F96: 1.010677418 | G96: 0 | H96: -0.00762466781
A97: 2005-04-01 | B97: 1.011648083 | C97: 2005-04-01 | D97: 1.013971608 | E97: 2005-04-30 | F97: 1.002912131 | G97: -0.007683250039 | H97: -0.007683250039
A98: 2005-04-02 | B98: 1.011648087 | C98: 2005-04-02 | D98: 1.013971608 | E98: 2005-04-30 | F98: 1.002912131 | G98: 0 | H98: -0.007683250039
A99: 2005-04-03 | B99: 1.011648087 | C99: 2005-04-03 | D99: 1.013971608 | E99: 2005-04-30 | F99: 1.002912131 | G99: 0 | H99: -0.007683250039
A100: 2005-04-04 | B100: 1.012618755 | C100: 2005-04-04 | D100: 1.014453199 | E100: 2005-04-30 | F100: 1.002912131 | G100: 0 | H100: -0.007683250039
A101: 2005-04-05 | B101: 1.013589417 | C101: 2005-04-05 | D101: 1.01609849 | E101: 2005-04-30 | F101: 1.002912131 | G101: 0 | H101: -0.007683250039
A102: 2005-04-06 | B102: 1.016501412 | C102: 2005-04-06 | D102: 1.019288803 | E102: 2005-04-30 | F102: 1.002912131 | G102: 0 | H102: -0.007683250039
A103: 2005-04-07 | B103: 1.015530751 | C103: 2005-04-07 | D103: 1.018807219 | E103: 2005-04-30 | F103: 1.002912131 | G103: 0 | H103: -0.007683250039
A104: 2005-04-08 | B104: 1.017472081 | C104: 2005-04-08 | D104: 1.021515948 | E104: 2005-04-30 | F104: 1.002912131 | G104: 0 | H104: -0.007683250039
A105: 2005-04-09 | B105: 1.017472084 | C105: 2005-04-09 | D105: 1.021515948 | E105: 2005-04-30 | F105: 1.002912131 | G105: 0 | H105: -0.007683250039
A106: 2005-04-10 | B106: 1.017472084 | C106: 2005-04-10 | D106: 1.021515948 | E106: 2005-04-30 | F106: 1.002912131 | G106: 0 | H106: -0.007683250039
A107: 2005-04-11 | B107: 1.017472084 | C107: 2005-04-11 | D107: 1.021515948 | E107: 2005-04-30 | F107: 1.002912131 | G107: 0 | H107: -0.007683250039
A108: 2005-04-12 | B108: 1.014560093 | C108: 2005-04-12 | D108: 1.017743788 | E108: 2005-04-30 | F108: 1.002912131 | G108: 0 | H108: -0.007683250039
A109: 2005-04-13 | B109: 1.014560093 | C109: 2005-04-13 | D109: 1.017161935 | E109: 2005-04-30 | F109: 1.002912131 | G109: 0 | H109: -0.007683250039
A110: 2005-04-14 | B110: 1.013589431 | C110: 2005-04-14 | D110: 1.015516643 | E110: 2005-04-30 | F110: 1.002912131 | G110: 0 | H110: -0.007683250039
A111: 2005-04-15 | B111: 1.011648098 | C111: 2005-04-15 | D111: 1.013389768 | E111: 2005-04-30 | F111: 1.002912131 | G111: 0 | H111: -0.007683250039
A112: 2005-04-16 | B112: 1.011648098 | C112: 2005-04-16 | D112: 1.013389761 | E112: 2005-04-30 | F112: 1.002912131 | G112: 0 | H112: -0.007683250039
A113: 2005-04-17 | B113: 1.011648101 | C113: 2005-04-17 | D113: 1.013389761 | E113: 2005-04-30 | F113: 1.002912131 | G113: 0 | H113: -0.007683250039
A114: 2005-04-18 | B114: 1.005824111 | C114: 2005-04-18 | D114: 1.006427282 | E114: 2005-04-30 | F114: 1.002912131 | G114: 0 | H114: -0.007683250039
A115: 2005-04-19 | B115: 1.000000125 | C115: 2005-04-19 | D115: 0.9988829491 | E115: 2005-04-30 | F115: 1.002912131 | G115: 0 | H115: -0.007683250039
A116: 2005-04-20 | B116: 1.00097079 | C116: 2005-04-20 | D116: 0.9999463936 | E116: 2005-04-30 | F116: 1.002912131 | G116: 0 | H116: -0.007683250039
A117: 2005-04-21 | B117: 0.9990294596 | C117: 2005-04-21 | D117: 0.9972376647 | E117: 2005-04-30 | F117: 1.002912131 | G117: 0 | H117: -0.007683250039
A118: 2005-04-22 | B118: 1.000970793 | C118: 2005-04-22 | D118: 0.9999463936 | E118: 2005-04-30 | F118: 1.002912131 | G118: 0 | H118: -0.007683250039
A119: 2005-04-23 | B119: 1.000970793 | C119: 2005-04-23 | D119: 0.9999463936 | E119: 2005-04-30 | F119: 1.002912131 | G119: 0 | H119: -0.007683250039
A120: 2005-04-24 | B120: 1.000970797 | C120: 2005-04-24 | D120: 0.9999463936 | E120: 2005-04-30 | F120: 1.002912131 | G120: 0 | H120: -0.007683250039
A121: 2005-04-25 | B121: 1.001941458 | C121: 2005-04-25 | D121: 1.001009831 | E121: 2005-04-30 | F121: 1.002912131 | G121: 0 | H121: -0.007683250039
A122: 2005-04-26 | B122: 1.006794784 | C122: 2005-04-26 | D122: 1.006327019 | E122: 2005-04-30 | F122: 1.002912131 | G122: 0 | H122: -0.007683250039
A123: 2005-04-27 | B123: 1.004853457 | C123: 2005-04-27 | D123: 1.00361829 | E123: 2005-04-30 | F123: 1.002912131 | G123: 0 | H123: -0.007683250039
A124: 2005-04-28 | B124: 1.004853457 | C124: 2005-04-28 | D124: 1.003618297 | E124: 2005-04-30 | F124: 1.002912131 | G124: 0 | H124: -0.007683250039
A125: 2005-04-29 | B125: 1.002912131 | C125: 2005-04-29 | D125: 1.000909568 | E125: 2005-04-30 | F125: 1.002912131 | G125: 0 | H125: -0.007683250039
A126: 2005-04-30 | B126: 1.002912131 | C126: 2005-04-30 | D126: 1.000909568 | E126: 2005-04-30 | F126: 1.002912131 | G126: 0 | H126: -0.007683250039
A127: 2005-05-01 | B127: 1.002912131 | C127: 2005-05-01 | D127: 1.000909568 | E127: 2005-05-31 | F127: 1.023296133 | G127: 0.02032481391 | H127: -0.007683250039
A128: 2005-05-02 | B128: 1.002912134 | C128: 2005-05-02 | D128: 1.001491422 | E128: 2005-05-31 | F128: 1.023296133 | G128: 0 | H128: -0.007683250039
A129: 2005-05-03 | B129: 1.005824129 | C129: 2005-05-03 | D129: 1.005263588 | E129: 2005-05-31 | F129: 1.023296133 | G129: 0 | H129: -0.007683250039
A130: 2005-05-04 | B130: 1.006794798 | C130: 2005-05-04 | D130: 1.005745172 | E130: 2005-05-31 | F130: 1.023296133 | G130: 0 | H130: -0.007683250039
A131: 2005-05-05 | B131: 1.006794795 | C131: 2005-05-05 | D131: 1.005745179 | E131: 2005-05-31 | F131: 1.023296133 | G131: 0 | H131: -0.007683250039
A132: 2005-05-06 | B132: 1.00776546 | C132: 2005-05-06 | D132: 1.007390471 | E132: 2005-05-31 | F132: 1.023296133 | G132: 0 | H132: -0.007683250039
A133: 2005-05-07 | B133: 1.007765463 | C133: 2005-05-07 | D133: 1.007390471 | E133: 2005-05-31 | F133: =VLOOKUP(E133,A:B,2,0) -> 1.023296133 | G133: 0 | H133: -0.007683250039
A134: 2005-05-08 | B134: 1.007765463 | C134: 2005-05-08 | D134: 1.007390471 | E134: =LastDayinMonth(A134) -> 2005-05-31 | F134: 1.023296133 | G134: =F134/F133-1 -> 0 | H134: =IF(H133<G134,H133,G134) -> -0.007683250039
A135: 2005-05-09 | B135: 1.007765467 | C135: 2005-05-09 | D135: 1.007972324 | E135: 2005-05-31 | F135: 1.023296133 | G135: 0 | H135: -0.007683250039
A136: 2005-05-10 | B136: 1.010677462 | C136: 2005-05-10 | D136: 1.011744491 | E136: 2005-05-31 | F136: 1.023296133 | G136: 0 | H136: -0.007683250039
A137: 2005-05-11 | B137: 1.009706797 | C137: 2005-05-11 | D137: 1.009517346 | E137: 2005-05-31 | F137: 1.023296133 | G137: 0 | H137: -0.007683250039
A138: 2005-05-12 | B138: 1.008736136 | C138: 2005-05-12 | D138: 1.008453908 | E138: 2005-05-31 | F138: 1.023296133 | G138: 0 | H138: -0.007683250039
A139: 2005-05-13 | B139: 1.008736136 | C139: 2005-05-13 | D139: 1.008453915 | E139: 2005-05-31 | F139: 1.023296133 | G139: 0 | H139: -0.007683250039
A140: 2005-05-14 | B140: 1.008736139 | C140: 2005-05-14 | D140: 1.008453915 | E140: 2005-05-31 | F140: 1.023296133 | G140: 0 | H140: -0.007683250039
A141: 2005-05-15 | B141: 1.008736136 | C141: 2005-05-15 | D141: 1.008453915 | E141: 2005-05-31 | F141: 1.023296133 | G141: 0 | H141: -0.007683250039
A142: 2005-05-16 | B142: 1.008736136 | C142: 2005-05-16 | D142: 1.008453915 | E142: 2005-05-31 | F142: 1.023296133 | G142: 0 | H142: -0.007683250039
A143: 2005-05-17 | B143: 1.010677469 | C143: 2005-05-17 | D143: 1.010580783 | E143: 2005-05-31 | F143: 1.023296133 | G143: 0 | H143: -0.007683250039
A144: 2005-05-18 | B144: 1.009706804 | C144: 2005-05-18 | D144: 1.010099199 | E144: 2005-05-31 | F144: 1.023296133 | G144: 0 | H144: -0.007683250039
A145: 2005-05-19 | B145: 1.014560133 | C145: 2005-05-19 | D145: 1.015416387 | E145: 2005-05-31 | F145: 1.023296133 | G145: 0 | H145: -0.007683250039
A146: 2005-05-20 | B146: 1.016501463 | C146: 2005-05-20 | D146: 1.017543263 | E146: 2005-05-31 | F146: 1.023296133 | G146: 0 | H146: -0.007683250039
A147: 2005-05-21 | B147: 1.016501467 | C147: 2005-05-21 | D147: 1.01754327 | E147: 2005-05-31 | F147: 1.023296133 | G147: 0 | H147: -0.007683250039
A148: 2005-05-22 | B148: 1.016501467 | C148: 2005-05-22 | D148: 1.01754327 | E148: 2005-05-31 | F148: 1.023296133 | G148: 0 | H148: -0.007683250039
A149: 2005-05-23 | B149: 1.014560137 | C149: 2005-05-23 | D149: 1.015998248 | E149: 2005-05-31 | F149: 1.023296133 | G149: 0 | H149: -0.007683250039
A150: 2005-05-24 | B150: 1.018442801 | C150: 2005-05-24 | D150: 1.020833852 | E150: 2005-05-31 | F150: 1.023296133 | G150: 0 | H150: -0.007683250039
A151: 2005-05-25 | B151: 1.018442797 | C151: 2005-05-25 | D151: 1.020251998 | E151: 2005-05-31 | F151: 1.023296133 | G151: 0 | H151: -0.007683250039
A152: 2005-05-26 | B152: 1.018442801 | C152: 2005-05-26 | D152: 1.020251998 | E152: 2005-05-31 | F152: 1.023296133 | G152: 0 | H152: -0.007683250039
A153: 2005-05-27 | B153: 1.020384131 | C153: 2005-05-27 | D153: 1.022960727 | E153: 2005-05-31 | F153: 1.023296133 | G153: 0 | H153: -0.007683250039
A154: 2005-05-28 | B154: 1.020384131 | C154: 2005-05-28 | D154: 1.022960734 | E154: 2005-05-31 | F154: 1.023296133 | G154: 0 | H154: -0.007683250039
A155: 2005-05-29 | B155: 1.020384134 | C155: 2005-05-29 | D155: 1.022960734 | E155: 2005-05-31 | F155: 1.023296133 | G155: 0 | H155: -0.007683250039
A156: 2005-05-30 | B156: 1.022325464 | C156: 2005-05-30 | D156: 1.025087609 | E156: 2005-05-31 | F156: 1.023296133 | G156: 0 | H156: -0.007683250039
A157: 2005-05-31 | B157: 1.023296133 | C157: 2005-05-31 | D157: 1.026151047 | E157: 2005-05-31 | F157: 1.023296133 | G157: 0 | H157: -0.007683250039
A158: 2005-06-01 | B158: 1.027178793 | C158: 2005-06-01 | D158: 1.030986651 | E158: 2005-06-30 | F158: 1.046592127 | G158: 0.02276564243 | H158: -0.007683250039
A159: 2005-06-02 | B159: 1.033973449 | C159: 2005-06-02 | D159: 1.038430714 | E159: 2005-06-30 | F159: 1.046592127 | G159: 0 | H159: -0.007683250039
A160: 2005-06-03 | B160: 1.034944117 | C160: 2005-06-03 | D160: 1.039494152 | E160: 2005-06-30 | F160: 1.046592127 | G160: 0 | H160: -0.007683250039
A161: 2005-06-04 | B161: 1.034944114 | C161: 2005-06-04 | D161: 1.039494152 | E161: 2005-06-30 | F161: 1.046592127 | G161: 0 | H161: -0.007683250039
A162: 2005-06-05 | B162: 1.034944117 | C162: 2005-06-05 | D162: 1.039494159 | E162: 2005-06-30 | F162: 1.046592127 | G162: 0 | H162: -0.007683250039
A163: 2005-06-06 | B163: 1.033973452 | C163: 2005-06-06 | D163: 1.037848868 | E163: 2005-06-30 | F163: 1.046592127 | G163: 0 | H163: -0.007683250039
A164: 2005-06-07 | B164: 1.034944117 | C164: 2005-06-07 | D164: 1.038912305 | E164: 2005-06-30 | F164: 1.046592127 | G164: 0 | H164: -0.007683250039
A165: 2005-06-08 | B165: 1.034944121 | C165: 2005-06-08 | D165: 1.038912305 | E165: 2005-06-30 | F165: 1.046592127 | G165: 0 | H165: -0.007683250039
A166: 2005-06-09 | B166: 1.034944121 | C166: 2005-06-09 | D166: 1.038330451 | E166: 2005-06-30 | F166: 1.046592127 | G166: 0 | H166: -0.007683250039
A167: 2005-06-10 | B167: 1.036885455 | C167: 2005-06-10 | D167: 1.041621034 | E167: 2005-06-30 | F167: 1.046592127 | G167: 0 | H167: -0.007683250039
A168: 2005-06-11 | B168: 1.036885455 | C168: 2005-06-11 | D168: 1.041621034 | E168: 2005-06-30 | F168: 1.046592127 | G168: 0 | H168: -0.007683250039
A169: 2005-06-12 | B169: 1.036885455 | C169: 2005-06-12 | D169: 1.041621034 | E169: 2005-06-30 | F169: 1.046592127 | G169: 0 | H169: -0.007683250039
A170: 2005-06-13 | B170: 1.037856123 | C170: 2005-06-13 | D170: 1.042102625 | E170: 2005-06-30 | F170: 1.046592127 | G170: 0 | H170: -0.007683250039
A171: 2005-06-14 | B171: 1.04173878 | C171: 2005-06-14 | D171: 1.047520083 | E171: 2005-06-30 | F171: 1.046592127 | G171: 0 | H171: -0.007683250039
A172: 2005-06-15 | B172: 1.041738784 | C172: 2005-06-15 | D172: 1.047520083 | E172: 2005-06-30 | F172: 1.046592127 | G172: 0 | H172: -0.007683250039
A173: 2005-06-16 | B173: 1.044650779 | C173: 2005-06-16 | D173: 1.050710395 | E173: 2005-06-30 | F173: 1.046592127 | G173: 0 | H173: -0.007683250039
A174: 2005-06-17 | B174: 1.042709449 | C174: 2005-06-17 | D174: 1.049165367 | E174: 2005-06-30 | F174: 1.046592127 | G174: 0 | H174: -0.007683250039
A175: 2005-06-18 | B175: 1.042709452 | C175: 2005-06-18 | D175: 1.049165367 | E175: 2005-06-30 | F175: 1.046592127 | G175: 0 | H175: -0.007683250039
A176: 2005-06-19 | B176: 1.042709452 | C176: 2005-06-19 | D176: 1.049165367 | E176: 2005-06-30 | F176: 1.046592127 | G176: 0 | H176: -0.007683250039
A177: 2005-06-20 | B177: 1.044650786 | C177: 2005-06-20 | D177: 1.051874096 | E177: 2005-06-30 | F177: 1.046592127 | G177: 0 | H177: -0.007683250039
A178: 2005-06-21 | B178: 1.042709456 | C178: 2005-06-21 | D178: 1.049165374 | E178: 2005-06-30 | F178: 1.046592127 | G178: 0 | H178: -0.007683250039
A179: 2005-06-22 | B179: 1.047562781 | C179: 2005-06-22 | D179: 1.054482562 | E179: 2005-06-30 | F179: 1.046592127 | G179: 0 | H179: -0.007683250039
A180: 2005-06-23 | B180: 1.04853345 | C180: 2005-06-23 | D180: 1.054964146 | E180: 2005-06-30 | F180: 1.046592127 | G180: 0 | H180: -0.007683250039
A181: 2005-06-24 | B181: 1.047562781 | C181: 2005-06-24 | D181: 1.053900708 | E181: 2005-06-30 | F181: 1.046592127 | G181: 0 | H181: -0.007683250039
A182: 2005-06-25 | B182: 1.047562785 | C182: 2005-06-25 | D182: 1.053900708 | E182: 2005-06-30 | F182: 1.046592127 | G182: 0 | H182: -0.007683250039
A183: 2005-06-26 | B183: 1.047562785 | C183: 2005-06-26 | D183: 1.053900708 | E183: 2005-06-30 | F183: 1.046592127 | G183: 0 | H183: -0.007683250039
A184: 2005-06-27 | B184: 1.04659212 | C184: 2005-06-27 | D184: 1.052255417 | E184: 2005-06-30 | F184: 1.046592127 | G184: 0 | H184: -0.007683250039
A185: 2005-06-28 | B185: 1.041738798 | C185: 2005-06-28 | D185: 1.046938236 | E185: 2005-06-30 | F185: 1.046592127 | G185: 0 | H185: -0.007683250039
A186: 2005-06-29 | B186: 1.045621458 | C186: 2005-06-29 | D186: 1.051191986 | E186: 2005-06-30 | F186: 1.046592127 | G186: 0 | H186: -0.007683250039
A187: 2005-06-30 | B187: 1.046592127 | C187: 2005-06-30 | D187: 1.053419131 | E187: 2005-06-30 | F187: 1.046592127 | G187: 0 | H187: -0.007683250039
A188: 2005-07-01 | B188: 1.045621462 | C188: 2005-07-01 | D188: 1.05177384 | E188: 2005-07-31 | F188: 1.062122801 | G188: 0.01483927996 | H188: -0.007683250039
A189: 2005-07-02 | B189: 1.045621466 | C189: 2005-07-02 | D189: 1.05177384 | E189: 2005-07-31 | F189: 1.062122801 | G189: 0 | H189: -0.007683250039
A190: 2005-07-03 | B190: 1.045621466 | C190: 2005-07-03 | D190: 1.05177384 | E190: 2005-07-31 | F190: 1.062122801 | G190: 0 | H190: -0.007683250039
A191: 2005-07-04 | B191: 1.046592134 | C191: 2005-07-04 | D191: 1.052837284 | E191: 2005-07-31 | F191: 1.062122801 | G191: 0 | H191: -0.007683250039
A192: 2005-07-05 | B192: 1.051445456 | C192: 2005-07-05 | D192: 1.058736326 | E192: 2005-07-31 | F192: 1.062122801 | G192: 0 | H192: -0.007683250039
A193: 2005-07-06 | B193: 1.053386786 | C193: 2005-07-06 | D193: 1.061445055 | E193: 2005-07-31 | F193: 1.062122801 | G193: 0 | H193: -0.007683250039
A194: 2005-07-07 | B194: 1.05144546 | C194: 2005-07-07 | D194: 1.05931818 | E194: 2005-07-31 | F194: 1.062122801 | G194: 0 | H194: -0.007683250039
A195: 2005-07-08 | B195: 1.050474794 | C195: 2005-07-08 | D195: 1.057672888 | E195: 2005-07-31 | F195: 1.062122801 | G195: 0 | H195: -0.007683250039
A196: 2005-07-09 | B196: 1.050474798 | C196: 2005-07-09 | D196: 1.057672888 | E196: 2005-07-31 | F196: 1.062122801 | G196: 0 | H196: -0.007683250039
A197: 2005-07-10 | B197: 1.050474798 | C197: 2005-07-10 | D197: 1.057672888 | E197: 2005-07-31 | F197: =VLOOKUP(E197,A:B,2,0) -> 1.062122801 | G197: 0 | H197: -0.007683250039
A198: 2005-07-11 | B198: 1.055328123 | C198: 2005-07-11 | D198: 1.06357193 | E198: =LastDayinMonth(A198) -> 2005-07-31 | F198: 1.062122801 | G198: =F198/F197-1 -> 0 | H198: =IF(H197<G198,H197,G198) -> -0.007683250039
A199: 2005-07-12 | B199: 1.055328127 | C199: 2005-07-12 | D199: 1.064153791 | E199: 2005-07-31 | F199: 1.062122801 | G199: 0 | H199: -0.007683250039
A200: 2005-07-13 | B200: 1.051445467 | C200: 2005-07-13 | D200: 1.05990004 | E200: 2005-07-31 | F200: 1.062122801 | G200: 0 | H200: -0.007683250039
A201: 2005-07-14 | B201: 1.052416136 | C201: 2005-07-14 | D201: 1.060381624 | E201: 2005-07-31 | F201: 1.062122801 | G201: 0 | H201: -0.007683250039
... 1470 more rows
